fUSD/lending_fUSD_20240328
["ID","MTS","AMOUNT","RATE_DAILY","PERIOD"]
[320853348,1711635043468,-63309.07461254,0.000407,30]
[320853349,1711635043480,-2086.29286903,0.000407,30]
[320853350,1711635043497,-470.25694966,0.000407,30]
[320853351,1711635043508,-23026.43175034,0.000407,30]
[320853352,1711635043532,-8470.01729155,0.000407,30]
[320853355,1711635047100,-415.24100588,0.000407,30]
[320853356,1711635047161,-81583.17082328,0.000407,30]
[320853358,1711635047338,-1972.29392483,0.000407,30]
[320853359,1711635047349,-3520.07916805,0.000407,30]
[320853360,1711635047361,-128457.93218175,0.000407,30]
[320853361,1711635047375,-217865.56907337,0.000407,30]
[320853368,1711635817449,-865.60012632,0.00032997,4]
[320853369,1711635817472,-485.31060469,0.00032998,4]
[320853370,1711635817496,-623.61452809,0.00032998,4]
[320853371,1711635817518,-2000.0,0.00032998,2]
[320853372,1711635817541,-400.0,0.00032999,2]
[320853373,1711635817565,-198.02048487,0.00032999,4]
[320853374,1711635817589,-250.0,0.00033,3]
[320853375,1711635817613,-300.0,0.00035,3]
[320853376,1711635817635,-542.13216509,0.00035894,4]
[320853377,1711635817661,-7202.19755048,0.00035895,4]
[320853378,1711635817683,-150.0,0.00035902,2]
[320853379,1711635817707,-583.17,0.00035912,2]
[320853380,1711635817731,-363.77,0.0003698,2]
[320853381,1711635817753,-23890.0,0.0003698,2]
[320853382,1711635817777,-350.0,0.00037,3]
[320853383,1711635817804,-369.84,0.00037052,15]
[320853384,1711635817827,-228.65,0.00037076,2]
[320853385,1711635817849,-3910.39,0.00037116,2]
[320853386,1711635817873,-500.0,0.00037118,2]
[320853387,1711635817895,-406.53,0.00037118,2]
[320853388,1711635817917,-6425.7,0.00037186,60]
[320853389,1711635817938,-499.99,0.00037186,2]
[320853390,1711635817959,-266.87,0.00037186,2]
[320853391,1711635817981,-250.0,0.00037207,2]
[320853392,1711635818002,-500.0,0.00037219,2]
[320853393,1711635818023,-173.6,0.00037219,120]
[320853394,1711635818044,-167.35,0.00037313,2]
[320853395,1711635818065,-150.0,0.00037313,2]
[320853396,1711635818088,-227.74,0.00037332,2]
[320853397,1711635818113,-1716.49,0.00037332,2]
[320853398,1711635818136,-850.54,0.00037332,2]
[320853399,1711635818159,-150.99,0.00037332,2]
[320853400,1711635818183,-372.11,0.00037553,2]
[320853401,1711635818208,-372.11,0.00037655,2]
[320853402,1711635818231,-250.0,0.00037689,2]
[320853403,1711635818254,-337.3,0.00037689,2]
[320853404,1711635818276,-2765.49,0.00037704,2]
[320853405,1711635818301,-372.11,0.00037758,2]
[320853406,1711635818325,-150.0,0.00037778,2]
[320853407,1711635818363,-372.11,0.00037861,2]
[320853408,1711635818387,-372.11,0.00037964,2]
[320853409,1711635818410,-1738.95,0.00037992,2]
[320853410,1711635818435,-219.32,0.00038025,2]
[320853411,1711635818458,-444.26,0.00038025,2]
[320853412,1711635818482,-5301.693,0.00038025,2]
[320853413,1711635818507,-200.0,0.00038062,2]
[320853414,1711635818529,-693.34,0.00038062,2]
[320853415,1711635818555,-372.11,0.00038067,2]
[320853416,1711635818579,-14172.9,0.00038114,2]
[320853417,1711635818605,-150.99,0.00038114,2]
[320853418,1711635818628,-2913.04,0.00038157,2]
[320853419,1711635818651,-1957.29,0.00038157,2]
[320853420,1711635818674,-481.08,0.00038157,2]
[320853421,1711635818695,-999.99,0.00038157,2]
[320853422,1711635818719,-250.0,0.00038158,112]
[320853423,1711635818745,-372.11,0.0003817,2]
[320853424,1711635818769,-583.17,0.00038176,2]
[320853425,1711635818802,-13180.67595606,0.00038186,2]
[320853426,1711635818836,-1421.66,0.00038196,2]
[320853427,1711635818865,-500.0,0.00038242,2]
[320853428,1711635818897,-372.11,0.00038273,2]
[320853429,1711635818929,-4806.07,0.00038278,2]
[320853430,1711635818955,-299.28,0.00038278,2]
[320853431,1711635818986,-593.47,0.00038331,2]
[320853432,1711635819017,-372.11,0.00038376,2]
[320853433,1711635819047,-412.36,0.0003846,2]
[320853434,1711635819080,-372.11,0.00038479,2]
[320853435,1711635819112,-2343.72444893,0.00038529,2]
[320853436,1711635819142,-18241.56898895,0.00038537,2]
[320853437,1711635819175,-372.11,0.00038582,2]
[320853438,1711635819208,-173.6,0.00038589,120]
[320853439,1711635819242,-18847.74,0.00038601,2]
[320853440,1711635819268,-5842.81717182,0.00038629,4]
[320853441,1711635819297,-6842.03761758,0.00038632,4]
[320853442,1711635819327,-1036.7288987,0.00038634,4]
[320853443,1711635819355,-263.54107721,0.00038634,4]
[320853444,1711635819380,-155.0,0.00038634,4]
[320853445,1711635819407,-3602.90419678,0.00038634,4]
[320853446,1711635819437,-398.88781664,0.00038634,4]
[320853447,1711635819464,-265.89599496,0.00038634,4]
[320853448,1711635819491,-203.03498527,0.00038634,4]
[320853449,1711635819518,-206.40440117,0.00038634,4]
[320853450,1711635819545,-447.5715316,0.00038634,4]
[320853451,1711635819576,-3749.01959122,0.00038634,2]
[320853452,1711635819605,-236.3331456,0.00038634,2]
[320853453,1711635819632,-310.74502783,0.00038635,4]
[320853454,1711635819660,-1000.0,0.00038635,2]
[320853455,1711635819688,-41803.82754945,0.00038636,4]
[320853456,1711635819714,-3147.72141419,0.00038637,4]
[320853457,1711635819742,-229.61515636,0.00038663,4]
[320853458,1711635819769,-372.11,0.00038685,2]
[320853459,1711635819796,-150.0,0.00038787,2]
[320853460,1711635819824,-372.11,0.00038788,2]
[320853461,1711635819852,-372.11,0.00038891,2]
[320853462,1711635819879,-1000.0,0.00038904,120]
[320853463,1711635819909,-372.11,0.00038994,2]
[320853464,1711635819938,-400.0,0.00039,3]
[320853465,1711635819966,-372.11,0.00039097,2]
[320853466,1711635819994,-1365.8199068,0.00039198,4]
[320853467,1711635820022,-372.11,0.000392,2]
[320853468,1711635820052,-372.11,0.00039303,2]
[320853469,1711635820081,-407.1,0.00039364,2]
[320853470,1711635820112,-407.1,0.00039375,2]
[320853471,1711635820140,-407.1,0.00039385,2]
[320853472,1711635820168,-407.1,0.00039395,2]
[320853473,1711635820196,-170.68,0.00039405,2]
[320853474,1711635820224,-407.1,0.00039406,2]
[320853475,1711635820252,-372.11,0.00039406,2]
[320853476,1711635820280,-407.1,0.00039416,2]
[320853477,1711635820307,-407.1,0.00039426,2]
[320853478,1711635820334,-407.1,0.00039437,2]
[320853479,1711635820362,-407.1,0.00039447,2]
[320853480,1711635820389,-407.1,0.00039458,2]
[320853481,1711635820416,-407.1,0.00039468,2]
[320853482,1711635820443,-407.1,0.00039478,2]
[320853483,1711635820470,-407.1,0.00039489,2]
[320853484,1711635820496,-210.0,0.00039492,4]
[320853485,1711635820523,-407.1,0.00039499,2]
[320853486,1711635820554,-372.11,0.00039509,2]
[320853487,1711635820579,-407.1,0.00039509,2]
[320853488,1711635820608,-407.1,0.0003952,2]
[320853489,1711635820634,-407.1,0.0003953,2]
[320853490,1711635820661,-407.1,0.0003954,2]
[320853491,1711635820687,-407.1,0.00039551,2]
[320853492,1711635820714,-407.1,0.00039561,2]
[320853493,1711635820743,-369.84,0.00039791,15]
[320853494,1711635820769,-150.0,0.00039796,2]
[320853495,1711635820801,-352.62187009,0.000398,9]
[320853496,1711635820828,-162.08141888,0.00039806,2]
[320853497,1711635820856,-3910.39,0.00039856,2]
[320853498,1711635820884,-500.0,0.00039899,31]
[320853499,1711635820910,-500.0,0.00039899,31]
[320853500,1711635820934,-500.0,0.00039899,31]
[320853501,1711635820958,-489.70518496,0.00039899,31]
[320853502,1711635821323,-500.0,0.00039899,31]
[320853503,1711635821358,-500.0,0.00039899,31]
[320853504,1711635821383,-500.0,0.00039899,31]
[320853505,1711635821406,-500.0,0.00039899,31]
[320853506,1711635821428,-500.0,0.00039899,31]
[320853507,1711635821451,-500.0,0.00039899,31]
[320853508,1711635821473,-500.0,0.00039899,31]
[320853509,1711635821497,-500.0,0.00039899,31]
[320853510,1711635821520,-500.0,0.00039899,31]
[320853511,1711635821543,-440.8388,0.000399,2]
[320853512,1711635821571,-245000.0,0.000399,2]
[320853513,1711635821594,-500.0,0.000399,2]
[320853514,1711635821619,-173.6,0.00039959,120]
[320853515,1711635821641,-800.0,0.00039973,2]
[320853516,1711635821663,-192.94649433,0.0003999,2]
[320853517,1711635821685,-19398.779952,0.00039998,4]
[320853518,1711635821708,-250.434515,0.00039998,4]
[320853519,1711635821731,-155.59692827,0.00039998,4]
[320853520,1711635821753,-485.53986145,0.00039998,4]
[320853521,1711635821775,-246.28480066,0.00039998,4]
[320853522,1711635821797,-1414.27711435,0.00039998,4]
[320853523,1711635821818,-222.91387717,0.00039998,4]
[320853524,1711635821840,-344.8818256,0.00039998,4]
[320853525,1711635821864,-155.46650762,0.00039998,4]
[320853526,1711635821886,-173.79229338,0.00039998,4]
[320853527,1711635821907,-5251.95883984,0.00039998,4]
[320853528,1711635821929,-155.48082072,0.00039999,4]
[320853529,1711635821950,-9130.9424544,0.00039999,4]
[320853530,1711635821972,-2164.86870334,0.00039999,4]
[320853531,1711635821993,-405.0432097,0.00039999,4]
[320853532,1711635822016,-294.74242493,0.00039999,4]
[320853533,1711635822037,-119285.29670695,0.0004,2]
[320853534,1711635822057,-325.53992742,0.00040118,2]
[320853535,1711635822079,-162.08141886,0.00040218,2]
[320853536,1711635822100,-250.1172744,0.00040264,4]
[320853537,1711635822126,-583.17,0.00040439,2]
[320853538,1711635822148,-2343.72444888,0.00040459,2]
[320853539,1711635822171,-18241.56898888,0.00040466,2]
[320853540,1711635822194,-1000.0,0.00040573,2]
[320853541,1711635822217,-161.02408066,0.000406,2]
[320853542,1711635822239,-853.09544767,0.00040628,4]
[320853543,1711635822261,-213.79909617,0.00040629,14]
[320853544,1711635822284,-151.17363347,0.0004063,9]
[320853545,1711635822306,-162.08141886,0.0004063,2]
[320853546,1711635822327,-1679.08740472,0.00040632,2]
[320853547,1711635822349,-388.28835158,0.00040632,2]
[320853548,1711635822371,-507.00643964,0.00040632,2]
[320853549,1711635822392,-5307.14647286,0.00040632,2]
[320853550,1711635822414,-177.9572054,0.00040696,2]
[320853551,1711635822436,-652.11567,0.00040697,5]
[320853552,1711635822458,-155.0,0.00040698,4]
[320853553,1711635822480,-360.37934819,0.00040698,4]
[320853554,1711635822502,-164.43636222,0.00040698,4]
[320853555,1711635822523,-1237.04750438,0.00040698,4]
[320853556,1711635822547,-265.84716785,0.00040698,4]
[320853557,1711635822571,-431.24989399,0.00040698,4]
[320853558,1711635822593,-155.0,0.00040699,4]
[320853559,1711635822617,-278.87520748,0.00040699,4]
[320853560,1711635822640,-1224.29001584,0.00040699,4]
[320853561,1711635822664,-216.72363676,0.00040699,4]
[320853562,1711635822687,-487.09034613,0.00040699,4]
[320853563,1711635822710,-780.72902429,0.00040699,4]
[320853564,1711635822733,-4727.9577025,0.00040699,4]
[320853565,1711635822754,-4177.49663027,0.00040699,4]
[320853566,1711635822777,-1619.86802675,0.00040699,4]
[320853567,1711635822801,-192.16115415,0.00040699,2]
[320853568,1711635822823,-155.0,0.00040699,4]
[320853569,1711635822846,-3647.02071853,0.00040699,4]
[320853570,1711635822871,-290436.2820409,0.000407,30]
[320853571,1711635827700,-258.56,0.00036921,120]
[320853572,1711635827725,-250.0,0.00039598,112]
[320853573,1711635827749,-378.53,0.00039598,2]
[320853574,1711635827773,-93458.41389958,0.000407,30]
[320853575,1711635827798,-7900.0,0.000407,14]
[320853576,1711635827821,-600.0,0.000407,120]
[320853577,1711635827845,-1521.40228,0.000407,34]
[320853578,1711635827870,-269.0,0.00040703,15]
[320853579,1711635827907,-150.5,0.00040703,15]
[320853580,1711635827932,-867.0,0.00040708,15]
[320853581,1711635827957,-150.5,0.00040713,15]
[320853582,1711635827981,-150.5,0.00040713,15]
[320853583,1711635828006,-867.0,0.00040718,15]
[320853584,1711635828031,-150.5,0.00040723,15]
[320853585,1711635828056,-150.5,0.00040723,15]
[320853586,1711635828081,-150.0,0.00040728,7]
[320853587,1711635828105,-150.0,0.00040728,7]
[320853588,1711635828132,-150.0,0.00040728,7]
[320853589,1711635828158,-867.0,0.00040728,15]
[320853590,1711635828194,-2370.0,0.0004074,4]
[320853591,1711635828219,-1426.0,0.0004074,4]
[320853592,1711635828244,-92866.0,0.0004074,4]
[320853593,1711635828270,-941.0,0.00040743,15]
[320853594,1711635828294,-941.0,0.00040753,15]
[320853595,1711635828318,-150.5,0.00040753,15]
[320853596,1711635828341,-150.5,0.00040763,15]
[320853597,1711635828369,-941.0,0.00040763,15]
[320853598,1711635828393,-150.5,0.00040763,15]
[320853599,1711635828416,-1048.43261624,0.00040771,4]
[320853600,1711635828439,-8283.66774864,0.00040771,4]
[320853601,1711635828466,-170.68,0.00040775,2]
[320853602,1711635828489,-614.37,0.000408,7]
[320853603,1711635828513,-540.55,0.000408,7]
[320853604,1711635828536,-730.81,0.000408,7]
[320853605,1711635828564,-10600.0,0.000408,14]
[320853606,1711635828588,-150.0,0.00040806,2]
[320853607,1711635828612,-253.316563,0.00040822,14]
[320853608,1711635828637,-13200.0,0.000409,14]
[320853609,1711635828661,-450.0,0.00041,3]
[320853610,1711635828687,-183.0,0.00041096,2]
[320853611,1711635828710,-1500.0,0.00041096,120]
[320853612,1711635828734,-150.0,0.00041412,60]
[320853613,1711635828761,-258.56,0.00041536,120]
[320853614,1711635828784,-180.0,0.00041612,2]
[320853615,1711635828808,-253.316563,0.00041644,14]
[320853616,1711635828831,-352.62187003,0.00041693,10]
[320853617,1711635828855,-164.63,0.00041751,2]
[320853618,1711635828879,-406.53,0.00041758,2]
[320853619,1711635828903,-150.0,0.00041815,2]
[320853620,1711635828928,-8750.80747398,0.00042,2]
[320853621,1711635828953,-163.90334495,0.00042,2]
[320853622,1711635828980,-163.90334495,0.00042,2]
[320853623,1711635829014,-163.90334495,0.00042,2]
[320853624,1711635829048,-163.90334495,0.00042,2]
[320853625,1711635829074,-163.90334495,0.00042,2]
[320853626,1711635829099,-163.90334495,0.00042,2]
[320853627,1711635829126,-163.90334495,0.00042,2]
[320853628,1711635829152,-163.90334495,0.00042,2]
[320853629,1711635829176,-163.90334495,0.00042,2]
[320853630,1711635829199,-163.90334495,0.00042,2]
[320853631,1711635829223,-163.90334495,0.00042,2]
[320853632,1711635829248,-163.90334495,0.00042,2]
[320853633,1711635829495,-163.90334495,0.00042,2]
[320853634,1711635829533,-163.90334495,0.00042,2]
[320853635,1711635829558,-163.90334495,0.00042,2]
[320853636,1711635829581,-163.90334495,0.00042,2]
[320853637,1711635829605,-163.90334495,0.00042,2]
[320853638,1711635829630,-163.90334495,0.00042,2]
[320853639,1711635829654,-163.90334495,0.00042,2]
[320853640,1711635829677,-163.90334495,0.00042,2]
[320853641,1711635829700,-163.90334495,0.00042,2]
[320853642,1711635829725,-163.90334495,0.00042,2]
[320853643,1711635829748,-163.90334495,0.00042,2]
[320853644,1711635829772,-163.90334495,0.00042,2]
[320853645,1711635829795,-163.90334495,0.00042,2]
[320853646,1711635829829,-163.90334495,0.00042,2]
[320853647,1711635829859,-163.90334495,0.00042,2]
[320853648,1711635829884,-163.90334495,0.00042,2]
[320853649,1711635829909,-163.90334495,0.00042,2]
[320853650,1711635829934,-163.90334495,0.00042,2]
[320853651,1711635829958,-163.90334495,0.00042,2]
[320853652,1711635829982,-163.90334495,0.00042,2]
[320853653,1711635830007,-163.90334495,0.00042,2]
[320853654,1711635830032,-163.90334495,0.00042,2]
[320853655,1711635830056,-163.90334495,0.00042,2]
[320853656,1711635830084,-163.90334495,0.00042,2]
[320853657,1711635830110,-163.90334495,0.00042,2]
[320853658,1711635830135,-163.90334495,0.00042,2]
[320853659,1711635830161,-163.90334495,0.00042,2]
[320853660,1711635830187,-163.90334495,0.00042,2]
[320853661,1711635830212,-163.90334495,0.00042,2]
[320853662,1711635830236,-163.90334495,0.00042,2]
[320853663,1711635830261,-163.90334495,0.00042,2]
[320853664,1711635830285,-163.90334495,0.00042,2]
[320853665,1711635830309,-163.90334495,0.00042,2]
[320853666,1711635830334,-163.90334495,0.00042,2]
[320853667,1711635830357,-163.90334495,0.00042,2]
[320853668,1711635830381,-163.90334495,0.00042,2]
[320853669,1711635830406,-163.90334495,0.00042,2]
[320853670,1711635830430,-163.90334495,0.00042,2]
[320853671,1711635830454,-163.90334495,0.00042,2]
[320853672,1711635830477,-163.90334495,0.00042,2]
[320853673,1711635830500,-163.90334495,0.00042,2]
[320853674,1711635830523,-163.90334495,0.00042,2]
[320853675,1711635830547,-163.90334495,0.00042,2]
[320853676,1711635830573,-163.90334495,0.00042,2]
[320853677,1711635830597,-163.90334495,0.00042,2]
[320853678,1711635830624,-163.90334495,0.00042,2]
[320853679,1711635830648,-163.90334495,0.00042,2]
[320853680,1711635830672,-163.90334495,0.00042,2]
[320853681,1711635830697,-163.90334495,0.00042,2]
[320853682,1711635830721,-163.90334495,0.00042,2]
[320853683,1711635830745,-163.90334495,0.00042,2]
[320853684,1711635830768,-163.90334495,0.00042,2]
[320853685,1711635830791,-163.90334495,0.00042,2]
[320853686,1711635830816,-163.90334495,0.00042,2]
[320853687,1711635830840,-163.90334495,0.00042,2]
[320853688,1711635830863,-163.90334495,0.00042,2]
[320853689,1711635830889,-163.90334495,0.00042,2]
[320853690,1711635830912,-163.90334495,0.00042,2]
[320853691,1711635830936,-163.90334495,0.00042,2]
[320853692,1711635830962,-163.90334495,0.00042,2]
[320853693,1711635830985,-163.90334495,0.00042,2]
[320853694,1711635831009,-163.90334495,0.00042,2]
[320853695,1711635831033,-163.90334495,0.00042,2]
[320853696,1711635831058,-163.90334495,0.00042,2]
[320853697,1711635831081,-163.90334495,0.00042,2]
[320853698,1711635831105,-163.90334495,0.00042,2]
[320853699,1711635831130,-163.90334495,0.00042,2]
[320853700,1711635831155,-163.90334495,0.00042,2]
[320853701,1711635831179,-163.90334495,0.00042,2]
[320853702,1711635831203,-163.90334495,0.00042,2]
[320853703,1711635831228,-163.90334495,0.00042,2]
[320853704,1711635831252,-163.90334495,0.00042,2]
[320853705,1711635831276,-163.90334495,0.00042,2]
[320853706,1711635831301,-163.90334495,0.00042,2]
[320853707,1711635831330,-163.90334495,0.00042,2]
[320853708,1711635831355,-163.90334495,0.00042,2]
[320853709,1711635831384,-163.90334495,0.00042,2]
[320853710,1711635831411,-163.90334495,0.00042,2]
[320853711,1711635831437,-163.90334495,0.00042,2]
[320853712,1711635831464,-163.90334495,0.00042,2]
[320853713,1711635831490,-163.90334495,0.00042,2]
[320853714,1711635831518,-163.90334495,0.00042,2]
[320853715,1711635831544,-163.90334495,0.00042,2]
[320853716,1711635831573,-163.90334495,0.00042,2]
[320853717,1711635831599,-163.90334495,0.00042,2]
[320853718,1711635831627,-163.90334495,0.00042,2]
[320853719,1711635831652,-163.90334495,0.00042,2]
[320853720,1711635831677,-163.90334495,0.00042,2]
[320853721,1711635833389,-1300.95144486,0.0004201,2]
[320853722,1711635833422,-3594.96991952,0.00042207,16]
[320853723,1711635833447,-213.79909613,0.00042381,16]
[320853724,1711635833472,-2343.72444888,0.00042389,2]
[320853725,1711635833498,-18241.56898888,0.00042395,2]
[320853726,1711635833526,-150.0,0.00042412,60]
[320853727,1711635833552,-253.316563,0.00042466,14]
[320853728,1711635833577,-369.84,0.00042531,15]
[320853729,1711635833611,-3910.39,0.00042596,2]
[320853730,1711635833637,-583.17,0.00042703,2]
[320853731,1711635833661,-150.0,0.00042824,2]
[320853732,1711635833684,-500.0,0.00043,3]
[320853733,1711635833708,-287.28316374,0.000431,12]
[320853734,1711635833892,-730.81,0.000431,7]
[320853735,1711635833928,-593.47,0.00043122,2]
[320853736,1711635833951,-614.37,0.000432,7]
[320853737,1711635833974,-540.55,0.000432,7]
[320853738,1711635833996,-253.316563,0.00043288,14]
[320853739,1711635834018,-150.0,0.00043412,60]
[320853740,1711635834041,-293.0,0.00043441,4]
[320853741,1711635834064,-352.62187003,0.00043586,11]
[320853742,1711635834087,-3594.96991952,0.00043815,18]
[320853743,1711635834109,-150.0,0.00043833,2]
[320853744,1711635834573,281.76622949,0.00040699,4]
[320853745,1711635834631,396.906104,0.000407,2]
[320853746,1711635834799,5889.63246569,0.00040699,4]
[320853747,1711635835258,400.0,0.00040699,2]
[320853748,1711635835391,2000.0,0.00040698,2]
[320853749,1711635835419,422.11636221,0.00040699,4]
[320853750,1711635835518,266.34938699,0.00040698,4]
[320853751,1711635835624,1747.76841612,0.00040632,32]
[320853752,1711635836527,266.93328196,0.00040731,4]
[320853753,1711635838452,235.57035527,0.00040731,4]
[320853759,1711636071146,548.0,0.00040732,120]
[320853763,1711636161376,-542.13216509,0.00034391,4]
[320853764,1711636161398,-1832.28974118,0.00034392,4]
[320853765,1711636161418,-242.26779373,0.00034393,4]
[320853775,1711636232470,-450.037073,0.00034384,4]
[320853776,1711636232533,-173.57745509,0.00034384,4]
[320853777,1711636232542,-290.03949168,0.00034384,4]
[320853778,1711636232553,-253.05701678,0.00034384,4]
[320853779,1711636232563,-485.31060469,0.00034385,4]
[320853780,1711636232571,-12.56479041,0.00034386,2]
[320853781,1711636232584,-387.43520959,0.00034386,2]
[320853782,1711636232593,-198.02048487,0.00034387,4]
[320853783,1711636232602,-2000.0,0.00034387,2]
[320853784,1711636232612,-865.60012632,0.00034388,4]
[320853785,1711636232621,-1832.76857805,0.00034393,4]
[320853786,1711636232631,-1025.59354118,0.00034399,4]
[320853787,1711636232640,-228.0,0.000344,2]
[320853788,1711636232649,-583.17,0.00036406,2]
[320853789,1711636232658,-155.0,0.00036657,4]
[320853790,1711636232669,-693.34,0.00036657,2]
[320853791,1711636232678,-500.0,0.00037,120]
[320853792,1711636232688,-500.0,0.00038,120]
[320853793,1711636232697,-500.0,0.00038267,2]
[320853794,1711636232707,-372.11,0.00038546,2]
[320853795,1711636232716,-500.0,0.00038599,2]
[320853796,1711636232725,-372.11,0.00038651,2]
[320853797,1711636232735,-150.0,0.00038669,5]
[320853798,1711636232746,-583.17,0.0003867,2]
[320853799,1711636232758,-229.61515636,0.00038694,4]
[320853800,1711636232768,-3147.72141419,0.00038694,4]
[320853801,1711636232777,-499.99,0.00038694,2]
[320853802,1711636232787,-1957.29,0.00038694,10]
[320853803,1711636232796,-481.08,0.00038694,2]
[320853804,1711636232805,-999.99,0.00038694,2]
[320853805,1711636232815,-1421.66,0.00038694,2]
[320853806,1711636232824,-850.54,0.00038694,2]
[320853807,1711636232833,-372.11,0.00038757,2]
[320853808,1711636232843,-2765.49,0.00038841,2]
[320853810,1711636232851,-372.11,0.00038863,2]
[320853812,1711636232860,-1000.0,0.00038904,120]
[320853814,1711636232869,-500.0,0.0003893,2]
[320853816,1711636232879,-372.11,0.00038969,2]
[320853818,1711636232889,-500.0,0.00039,120]
[320853820,1711636232898,-250.0,0.0003901,2]
[320853822,1711636232908,-150.0,0.00039021,2]
[320853824,1711636232917,-372.11,0.00039074,2]
[320853827,1711636232926,-372.11,0.0003918,2]
[320853828,1711636232935,-372.11,0.00039286,2]
[320853831,1711636232946,-1928.06,0.00039345,2]
[320853833,1711636232955,-167.35,0.00039345,2]
[320853835,1711636232964,-372.11,0.00039391,2]
[320853837,1711636232974,-337.3,0.00039459,2]
[320853839,1711636232983,-1738.95,0.00039485,2]
[320853841,1711636232992,-372.11,0.00039497,2]
[320853843,1711636233002,-150.0,0.00039516,2]
[320853845,1711636233011,-150.99,0.00039516,2]
[320853847,1711636233021,-1573.46376638,0.00039592,2]
[320853849,1711636233033,-709.73,0.00039592,2]
[320853853,1711636233062,-5849.99250571,0.00039592,2]
[320853856,1711636233074,-1872.74372791,0.00039592,2]
[320853858,1711636233083,-3160.16,0.00039592,2]
[320853860,1711636233092,-372.11,0.00039603,2]
[320853862,1711636233101,-219.32,0.00039651,2]
[320853863,1711636233111,-372.11,0.00039709,2]
[320853865,1711636233120,-896.38783181,0.00039719,4]
[320853867,1711636233129,-372.11,0.00039814,2]
[320853868,1711636233139,-200.0,0.00039896,2]
[320853870,1711636233148,-372.11,0.0003992,2]
[320853872,1711636233158,-372.11,0.00040026,2]
[320853874,1711636233167,-372.11,0.00040132,2]
[320853876,1711636233177,-372.11,0.00040237,2]
[320853878,1711636233187,-250.1172744,0.00040323,4]
[320853880,1711636233197,-372.11,0.00040343,2]
[320853882,1711636233207,-372.11,0.00040449,2]
[320853884,1711636233216,-292.83577907,0.00040471,2]
[320853885,1711636233229,-1875.38731659,0.00040471,2]
[320853886,1711636233241,-175.50135327,0.00040471,2]
[320853887,1711636233252,-266.34938699,0.00040531,4]
[320853888,1711636233262,-1492.39046153,0.00040532,2]
[320853889,1711636233274,-284.49703418,0.00040532,2]
[320853890,1711636233298,-7090.4,0.00040532,2]
[320853891,1711636233311,-739.23447635,0.00040532,2]
[320853892,1711636233338,-3162.57632021,0.00040532,2]
[320853893,1711636233349,-352.62187009,0.00040532,9]
[320853894,1711636233358,-1629.25212178,0.00040532,2]
[320853895,1711636233370,-521.97670531,0.00040532,2]
[320853896,1711636233382,-5564.94086119,0.00040532,2]
[320853897,1711636233398,-30854.30600666,0.00040532,2]
[320853920,1711636237995,-54704.91,0.00040532,2]
[320853921,1711636238007,-6724.61430506,0.00040532,2]
[320853922,1711636238017,-957.1328,0.00040532,2]
[320853923,1711636238026,-682.1145,0.00040532,2]
[320853924,1711636238036,-500.0,0.00040532,2]
[320853925,1711636238045,-2530.72076734,0.00040532,2]
[320853926,1711636238143,-1004.24014995,0.00040532,2]
[320854017,1711636240226,-27231.63028271,0.00040532,2]
[320854018,1711636240236,-372.11,0.00040554,2]
[320854019,1711636240245,-150.0,0.00040571,2]
[320854020,1711636240255,-600.0,0.000406,14]
[320854021,1711636240265,-500.0,0.00040631,31]
[320854022,1711636240274,-500.0,0.00040631,31]
[320854023,1711636240284,-500.0,0.00040631,31]
[320854024,1711636240293,-500.0,0.00040631,31]